bitfinex/quotes_ETHUSD_20241019
["timestamp","ask_amount","ask_price","bid_price","bid_amount"]
[1729328858724,1.97966863,2647.3,2647.0,3.77776]
[1729328858920,6.15262236,2647.6,2647.0,3.77776]
[1729328858921,1.97966863,2647.4,2647.0,3.77776]
[1729328859281,1.97966863,2647.4,2646.9,4.56797]
[1729328859487,1.97966863,2647.4,2647.1,3.77769]
[1729328859847,1.97977318,2647.4,2647.1,3.77769]
[1729328860944,1.97977318,2647.4,2647.0,3.77785]
[1729328861759,1.97977318,2647.3,2646.9,4.56797]
[1729328861962,1.97977318,2647.3,2646.9,8.34588]
[1729328862182,1.97977318,2647.3,2646.9,5.4861533]
[1729328862353,1.97977318,2647.3,2647.0,3.77784]
[1729328862688,1.97977318,2647.3,2646.9,4.56798]
[1729328862895,1.97977318,2647.3,2647.0,3.77784]
[1729328864648,1.98100807,2647.3,2647.0,3.77784]
[1729328865594,1.98100807,2647.2,2647.0,3.77784]
[1729328869724,1.98200153,2647.2,2647.0,3.77784]
[1729328873970,1.98200153,2647.2,2647.0,3.77776]
[1729328874377,1.98208156,2647.2,2647.1,3.77771]
[1729328876580,1.98215919,2647.2,2647.1,3.77771]
[1729328879291,1.98223204,2647.2,2647.1,3.77771]
[1729328881066,1.98223204,2647.2,2647.1,4.56901]
[1729328881264,2.5734054,2647.3,2647.2,3.77757]
[1729328881667,1.98223204,2647.3,2647.2,3.77757]
[1729328881884,1.98223204,2647.3,2647.2,4.612228]
[1729328882678,1.98209149,2647.3,2647.2,4.612228]
[1729328884717,1.98209149,2647.3,2647.2,3.77757]
[1729328887524,1.98182694,2647.3,2647.2,3.77757]
[1729328889252,1.98182694,2647.4,2647.2,3.77757]
[1729328892401,1.98159049,2647.4,2647.2,3.77757]
[1729328897362,1.98155061,2647.4,2647.2,3.77757]
[1729328898257,1.98155061,2647.4,2647.2,4.612226]
[1729328901148,1.98155061,2647.4,2647.3,3.77743]
[1729328901330,1.98155061,2647.5,2647.3,3.77743]
[1729328902164,1.98149074,2647.5,2647.3,3.77743]
[1729328902458,1.98149074,2647.4,2647.3,3.77743]
[1729328902659,1.98149074,2647.4,2647.3,4.6955296]
[1729328902866,1.98149074,2647.5,2647.3,5.4603296]
[1729328903228,1.98149074,2647.5,2647.3,4.54216]
[1729328906968,1.98147364,2647.5,2647.3,4.54216]
[1729328908169,1.98147364,2647.5,2647.4,3.77729]
[1729328908482,2.96890019,2647.7,2647.5,3.77714]
[1729328908483,1.98147364,2647.6,2647.5,3.77714]
[1729328908629,2.57260547,2647.7,2647.6,3.777]
[1729328908827,1.98147364,2647.7,2647.6,3.777]
[1729328909033,1.98147364,2647.8,2647.7,3.77686]
[1729328909433,1.98147364,2647.8,2647.6,3.777]
[1729328909635,1.98147364,2647.9,2647.6,4.3066443]
[1729328909834,1.98147364,2647.9,2647.7,0.7648]
[1729328910469,1.98147364,2647.9,2647.7,4.54165]
[1729328911254,1.98147364,2647.9,2647.7,0.7648]
[1729328911459,2.57253634,2648.0,2647.7,0.7648]
[1729328911688,0.5910627,2648.0,2647.7,0.7648]
[1729328911981,1.97973346,2647.9,2647.7,0.7648]
[1729328912291,2.57079616,2648.0,2647.7,0.7648]
[1729328912800,6.34722616,2648.0,2647.7,0.7648]
[1729328915364,2.57079616,2648.0,2647.7,0.7648]
[1729328916392,2.56968869,2648.0,2647.7,0.7648]
[1729328916728,2.56968869,2648.0,2647.7,4.54166]
[1729328918226,2.56968869,2648.0,2647.7,4.54158]
[1729328919732,0.5910627,2648.0,2647.7,4.54158]
[1729328929113,0.5910627,2648.0,2647.5,3.77706]
[1729328929313,2.56896248,2648.0,2647.6,3.77699]
[1729328930780,3.25496824,2648.0,2647.5,0.8263]
[1729328930982,3.77679,2647.8,2647.3,4.60372]
[1729328931398,5.75475699,2647.8,2647.3,4.60372]
[1729328932782,3.77679,2647.8,2647.3,4.60372]
[1729328932979,3.77679,2647.8,2647.3,0.8263]
[1729328933188,3.77679,2647.8,2647.4,3.77727]
[1729328933996,5.75455699,2647.9,2647.4,3.77721]
[1729328934557,5.75471699,2647.8,2647.4,3.77721]
[1729328935697,5.7552309,2647.8,2647.4,3.77721]
[1729328936062,1.9784809,2647.8,2647.4,3.77721]
[1729328937196,1.97866793,2647.8,2647.4,3.77721]
[1729328943732,1.97939822,2647.8,2647.4,3.77721]
[1729328944294,1.97939822,2647.7,2647.4,3.77721]
[1729328946584,1.97939822,2647.7,2647.3,0.8263]
[1729328946746,6.33194604,2647.7,2647.3,0.8263]
[1729328946945,2.55501604,2647.7,2647.3,0.8263]
[1729328947145,2.55501604,2647.7,2647.3,4.60371]
[1729328947357,1.97939822,2647.7,2647.3,4.60371]
[1729328947975,1.97939822,2647.6,2647.3,4.60371]
[1729328948181,1.97939822,2647.7,2647.4,3.77728]
[1729328948335,1.97939822,2647.7,2646.6,3.77836]
[1729328948336,1.97939822,2647.7,2647.5,4.54644]
[1729328950169,1.97939822,2647.7,2647.4,3.77727]
[1729328950487,1.97939822,2647.7,2647.4,7.55448]
[1729328950639,1.97939822,2647.7,2647.4,3.77721]
[1729328951350,1.97939822,2647.7,2647.4,7.55441]
[1729328951660,1.97939822,2647.7,2647.5,3.77714]
[1729328953423,1.98053928,2647.7,2647.5,3.77714]
[1729328954106,1.98053928,2647.7,2647.5,3.77620914]
[1729328957219,1.98053928,2647.7,2647.6,0.8319]
[1729328963049,1.98077404,2647.7,2647.6,0.8319]
[1729328964909,1.98077404,2647.7,2647.5,3.77620914]
[1729328967731,1.98113402,2647.7,2647.5,3.77620914]
[1729328971809,1.98160407,2647.7,2647.5,3.77620914]
[1729328972218,1.98160407,2647.6,2647.5,3.77620914]
[1729328972748,1.98174157,2647.6,2647.5,3.77620914]
[1729328974759,1.98174157,2647.6,2647.4,0.8319]
[1729328975052,1.98174157,2647.6,2647.4,4.60918]
[1729328978381,1.98174157,2647.6,2647.4,4.60917]
[1729328982538,1.9825275,2647.6,2647.4,4.60917]
[1729328982934,1.9825275,2647.6,2647.4,0.8319]
[1729328983123,1.9825275,2647.6,2647.4,4.60918]
[1729328986244,1.9825275,2647.6,2647.5,3.77714]
[1729328987194,3.77661,2647.9,2647.5,3.77714]
[1729328987363,1.98254978,2647.6,2647.5,3.77714]
[1729328992101,1.98254893,2647.6,2647.5,3.77714]
[1729328995435,1.98254893,2647.6,2647.5,4.55084]
[1729328995596,1.98254893,2647.6,2647.5,0.7737]
[1729328995793,1.98254893,2647.6,2647.4,7.55447]
[1729328996935,1.9826553,2647.6,2647.4,7.55447]
[1729328997139,1.9826553,2647.6,2647.4,3.77721]
[1729328998474,1.9826553,2647.6,2647.4,7.55443]
[1729329000547,1.9826553,2647.6,2647.4,3.77721]
[1729329000902,3.77664,2647.9,2647.4,3.77721]
[1729329001105,1.98276813,2647.6,2647.4,3.77721]
[1729329001727,1.98276813,2647.6,2647.4,7.55443]
[1729329002313,1.98276813,2647.6,2647.4,3.77721]
[1729329003167,1.98276813,2647.6,2647.4,7.55442]
[1729329003470,1.98276813,2647.6,2647.4,3.77721]
[1729329003665,1.98276813,2647.5,2647.4,3.77721]
[1729329003817,1.98276813,2647.6,2647.4,3.77721]
[1729329004822,1.98276813,2647.6,2647.3,0.7737]
[1729329005120,1.98276813,2647.6,2647.2,3.77756]
[1729329005121,1.98302495,2647.5,2647.2,3.77756]
[1729329006231,1.98302495,2647.4,2647.2,3.77756]
[1729329006535,1.98302495,2647.5,2647.2,3.77756]
[1729329010309,1.98302495,2647.4,2647.0,3.77775]
[1729329010852,1.98302495,2647.4,2647.0,7.55554]
[1729329011297,1.98302495,2647.4,2647.1,3.77768]
[1729329014884,1.98302495,2647.4,2647.1,3.66768]
[1729329016360,1.98302495,2647.4,2647.0,3.77775]
[1729329016562,1.98302495,2647.4,2647.0,7.55553]
[1729329017673,3.05151782,2647.4,2647.0,3.77775]
[1729329018160,3.04972192,2647.4,2647.0,7.55554]
[1729329018986,3.04972192,2647.4,2647.0,3.77775]
[1729329019575,6.82703192,2647.4,2646.9,4.59779]
[1729329019772,0.57824612,2647.3,2646.9,4.59779]
[1729329020001,2.55947517,2647.3,2646.9,4.59779]
[1729329020583,6.33699517,2647.3,2646.9,0.8198]
[1729329020809,6.33699517,2647.3,2646.8,3.77803]
[1729329021115,2.99955887,2647.1,2646.6,9.37827128]
[1729329021412,1.98122905,2647.0,2646.5,0.7849]
[1729329021720,3.77807,2646.9,2646.4,3.77862]
[1729329022024,5.75917905,2647.0,2646.3,0.7849]
[1729329022176,3.77811,2646.9,2646.3,4.56368]
[1729329022513,4.35160425,2646.9,2646.3,4.56368]
[1729329022714,4.35160425,2646.9,2646.4,3.77864]
[1729329031013,3.77817,2646.8,2646.3,4.56366]
[1729329031210,3.77817,2646.8,2646.3,0.7849]
[1729329031397,3.77817,2646.8,2646.4,3.77868]
[1729329034942,7.55641,2646.8,2646.3,5.63912662]
[1729329035246,3.77815806,2646.8,2646.2,5.59159026]
[1729329035747,3.77815806,2646.8,2646.3,5.63912662]
[1729329038340,3.77812,2646.9,2646.3,5.63912662]
[1729329040057,3.77816,2646.8,2646.3,5.63912662]
[1729329040565,3.77812,2646.9,2646.3,5.63912662]
[1729329040855,3.77759,2647.2,2646.3,5.63912662]
[1729329041159,3.77807,2646.9,2646.3,5.63912662]
[1729329042355,3.77807,2646.9,2646.4,3.77871]
[1729329042555,3.77807,2646.9,2646.4,5.57936305]
[1729329045053,3.77786,2647.0,2646.4,5.57936305]
[1729329047881,0.76795987,2647.1,2646.4,5.57936305]
[1729329048081,4.05223599,2647.0,2646.4,5.57936305]
[1729329048576,7.83017599,2647.0,2646.4,5.57936305]
[1729329048984,4.05223599,2647.0,2646.4,5.57936305]
[1729329051869,2.74442054,2647.1,2646.4,5.57936305]
[1729329052070,2.74442054,2647.1,2646.4,1.80065305]
[1729329052383,2.74442054,2647.1,2646.2,3.77891]
[1729329052384,1.97646067,2646.9,2646.2,1.81268026]
[1729329052569,0.27444205,2647.0,2646.2,1.81268026]
[1729329052570,1.97646067,2646.8,2646.2,1.81268026]
[1729329052975,5.75461067,2646.8,2646.2,1.81268026]
[1729329054348,3.77815,2646.8,2646.2,1.81268026]
[1729329054577,0.31857659,2646.7,2646.2,1.81268026]
[1729329056075,0.31857659,2646.7,2646.2,5.59166026]
[1729329056284,1.9774065,2646.8,2646.4,3.77871]
[1729329056476,1.9774065,2646.9,2646.4,4.54311]
[1729329059199,3.77792,2647.0,2646.4,4.54311]
[1729329059419,1.97781955,2646.8,2646.4,4.54311]
[1729329059966,1.97781955,2646.9,2646.4,4.54311]
[1729329060178,1.97781955,2646.8,2646.4,4.54311]
[1729329060382,1.97781955,2646.8,2646.4,5.55658703]
[1729329060585,1.97781955,2646.9,2646.4,5.55658703]
[1729329061405,1.97781955,2646.8,2646.4,5.55658703]
[1729329062073,1.97781955,2646.8,2646.4,4.79218703]
[1729329062273,1.97781955,2646.9,2646.5,0.7644]
[1729329062478,1.97781955,2646.9,2646.5,4.54286]
[1729329062706,1.97906593,2646.9,2646.6,0.7644]
[1729329063015,1.97906593,2646.9,2646.6,4.54279]
[1729329065420,2.37487912,2647.1,2646.6,4.54279]
[1729329066489,2.37487912,2647.0,2646.6,4.54279]
[1729329066785,2.37487912,2647.1,2646.6,4.54279]
[1729329066982,2.37487912,2647.0,2646.6,4.54279]
[1729329067186,2.37487912,2647.0,2646.6,5.5549953]
[1729329067381,2.37775286,2647.1,2646.6,4.54279]
[1729329072220,2.37797582,2647.1,2646.6,4.54279]
[1729329072401,4.5e-07,2646.8,2646.6,4.54279]
[1729329073655,2.37797582,2647.1,2646.6,4.54279]
[1729329075589,2.37797582,2647.1,2646.6,3.77839]
[1729329075791,2.37797582,2647.1,2646.7,4.54268]
[1729329076138,2.37797582,2647.2,2646.7,4.54268]
[1729329076334,2.37797582,2647.1,2646.7,4.54268]
[1729329076494,2.37797582,2647.1,2646.8,0.8024]
[1729329077106,2.37802987,2647.1,2646.8,0.8024]
[1729329077646,3.32376253,2647.3,2646.5,3.77856]
[1729329077647,3.32376253,2647.3,2647.0,3.77786]
[1729329077808,3.32376253,2647.3,2647.2,4.57997]
[1729329079141,2.37802987,2647.8,2647.4,0.8024]
[1729329079346,2.37802987,2647.9,2647.4,0.8024]
[1729329079554,2.99347686,2647.8,2647.4,0.8024]
[1729329080350,0.61544699,2647.8,2647.4,0.8024]
[1729329081181,0.61544699,2647.8,2647.4,4.57967]
[1729329083317,6.1504427,2648.0,2647.4,4.57967]
[1729329085556,3.77644,2648.0,2647.4,4.57967]
[1729329085731,6.1504427,2648.0,2647.4,4.57967]
[1729329086131,3.77644,2648.0,2647.4,4.57967]
[1729329086768,0.59112789,2647.9,2647.4,4.57967]
[1729329086967,0.59112789,2647.9,2647.4,5.415394]
[1729329087167,0.59112789,2647.9,2647.4,9.192604]
[1729329087530,0.59112789,2647.9,2647.4,5.415334]
[1729329092339,0.59112789,2647.9,2647.4,4.57961]
[1729329094488,0.59112789,2647.9,2647.5,3.77705]
[1729329094641,0.59112789,2647.9,2647.6,0.8024]
[1729329094975,0.59112789,2647.9,2647.6,4.5794]
[1729329095334,0.59112789,2647.9,2647.7,3.77684]
[1729329096271,0.59112789,2647.9,2647.6,4.57939]
[1729329107993,0.59112789,2647.9,2647.6,0.8024]
[1729329108290,0.59112789,2647.9,2647.4,4.56127]
[1729329108463,4.36780789,2647.9,2647.4,4.56127]
[1729329108788,0.81443179,2647.8,2647.4,4.56127]
[1729329117388,0.81443179,2647.8,2647.4,8.33848]
[1729329118503,4.36780789,2647.9,2647.4,8.33848]
[1729329121273,6.7425832,2647.9,2647.4,8.33848]
[1729329121506,2.9659032,2647.9,2647.5,3.77714]
[1729329123149,2.37477531,2647.8,2647.5,3.77714]
[1729329124028,2.37801026,2647.8,2647.5,3.77714]
[1729329126045,2.37814245,2647.8,2647.5,3.77714]
[1729329127655,3.20614026,2647.8,2647.5,3.77711]
[1729329127820,2.37814245,2647.7,2647.5,3.77711]
[1729329128774,2.37829592,2647.7,2647.5,3.77711]
[1729329132055,0.59112789,2647.9,2647.5,3.77711]
[1729329132056,2.37829592,2647.8,2647.5,3.77711]
[1729329133924,0.59112789,2647.9,2647.5,3.77711]
[1729329133925,2.37829592,2647.7,2647.5,3.77711]
[1729329136851,2.37829592,2647.8,2647.5,3.77711]
[1729329137384,6.9157804,2648.0,2647.5,3.77711]
[1729329137385,2.37829592,2647.7,2647.5,3.77711]
[1729329138684,2.37850641,2647.7,2647.5,3.77711]
[1729329139980,2.37850641,2647.7,2647.5,3.77714]
[1729329140188,2.37850641,2647.8,2647.5,3.77714]
[1729329140335,2.37850641,2647.7,2647.5,3.77714]
[1729329143391,2.3786701,2647.7,2647.5,3.77714]
[1729329146881,2.3786701,2647.7,2647.6,3.777]
[1729329147987,2.3786701,2647.9,2647.7,4.53676]
[1729329148226,6.09887765,2648.1,2648.0,3.77643]
[1729329148227,3.32376253,2648.1,2648.0,3.77643]
[1729329148429,5.70199182,2648.1,2648.0,3.77643]
[1729329148581,5.70199182,2648.1,2648.0,4.53633]
[1729329150026,5.70199182,2648.1,2648.0,5.367619]
[1729329150210,3.32376253,2648.1,2648.0,5.367619]
[1729329176246,3.32376253,2648.1,2648.0,4.53633]
[1729329177499,3.32376253,2648.1,2648.0,3.77643]
[1729329232981,2.97029781,2648.2,2648.1,3.77629]
[1729329234144,2.37929189,2648.2,2648.1,3.77629]
[1729329234678,2.3792235,2648.2,2648.1,3.77629]
[1729329239378,2.3791374,2648.2,2648.1,3.77629]
[1729329240897,2.37914225,2648.2,2648.1,3.77629]
[1729329242876,2.3791292,2648.2,2648.1,3.77629]
[1729329247690,0.1293393,2648.3,2648.1,3.77629]
[1729329247894,2.37907622,2648.2,2648.1,3.77629]
[1729329252686,2.37905702,2648.2,2648.1,3.77629]
[1729329254050,2.37769379,2648.2,2648.1,3.77629]
[1729329257586,0.1293393,2648.3,2648.1,3.77629]
[1729329258476,0.1293393,2648.3,2648.0,3.77643]
[1729329258679,0.1293393,2648.3,2648.2,3.77614]
[1729329260171,2.50824065,2648.3,2648.2,3.77614]
[1729329262386,2.50811514,2648.3,2648.2,3.77614]
[1729329265622,0.1293393,2648.3,2648.2,3.77614]
[1729329265796,2.50811514,2648.3,2648.2,3.77614]
[1729329266588,0.1293393,2648.3,2648.2,3.77614]
[1729329290287,0.1293393,2648.3,2648.2,4.52714]
[1729329290487,0.1293393,2648.3,2648.2,5.357481]
[1729329294444,0.1293393,2648.3,2648.2,4.52714]
[1729329306063,0.1293393,2648.3,2648.2,0.751]
[1729329306272,0.1293393,2648.3,2648.1,7.55244]
[1729329306471,0.1293393,2648.3,2648.2,3.77614]
[1729329307262,0.1293393,2648.3,2648.2,4.57014]
[1729329307463,0.1293393,2648.3,2648.2,5.404771]
[1729329317409,0.1293393,2648.3,2648.2,4.57014]
[1729329350038,0.1293393,2648.3,2648.2,4.64565471]
[1729329350272,0.1293393,2648.3,2648.2,4.57014]
[1729329350633,0.1293393,2648.3,2648.2,5.12014]
[1729329350831,0.1293393,2648.3,2648.2,5.40272066]
[1729329351147,0.1293393,2648.3,2648.2,6.44132446]
[1729329351348,0.1293393,2648.3,2648.2,6.36582263]
[1729329351877,0.1293393,2648.3,2648.2,6.36559196]
[1729329353334,0.0293393,2648.3,2648.2,6.08324197]
[1729329366757,0.52018973,2649.2,2648.3,1.3134]
[1729329366949,1.18683546,2649.2,2648.9,3.7751]
[1729329367546,0.52018973,2649.2,2648.9,3.7751]
[1729329367846,6.14626755,2649.4,2648.9,3.7751]
[1729329370944,6.14590141,2649.4,2648.9,3.7751]
[1729329374763,3.77466,2649.3,2648.8,3.77528]
[1729329377728,2.37147822,2649.4,2648.7,3.77535]
[1729329377936,6.14592822,2649.4,2648.9,3.77513]
[1729329378262,7.4296225,2649.4,2648.9,3.77513]
[1729329380731,7.42996938,2649.4,2648.9,3.77513]
[1729329384420,2.3718251,2649.3,2648.9,3.77513]
[1729329385831,3.77494,2649.1,2648.5,3.77564]
[1729329386070,3.77485,2649.2,2648.6,3.77549]
[1729329386600,3.77485,2649.2,2648.6,7.55098]
[1729329386770,6.1466751,2649.2,2648.6,7.55098]
[1729329386976,6.1466751,2649.2,2648.6,3.77549]
[1729329387300,6.147739,2649.2,2648.6,3.77549]
[1729329388759,9.922579,2649.2,2648.6,3.77549]
[1729329388985,11.04320633,2649.2,2648.6,3.77549]
[1729329389254,7.26835633,2649.2,2648.6,3.77549]
[1729329390200,7.26835633,2649.2,2648.6,7.55099]
[1729329390402,7.26945415,2649.2,2648.6,7.55099]
[1729329391104,7.26945415,2649.2,2648.6,7.55097]
[1729329391974,7.26945415,2649.2,2648.7,3.77541]
[1729329392774,2.37398682,2649.1,2648.7,3.77541]
[1729329395306,2.37398682,2649.0,2648.7,3.77541]
[1729329395509,2.37657665,2649.0,2648.7,3.77541]
[1729329396100,2.37654731,2649.0,2648.7,3.77541]
[1729329398810,2.37654731,2649.0,2648.6,8.30267]
[1729329399874,2.37654731,2649.0,2648.6,4.52718]
[1729329400099,2.37757673,2649.0,2648.6,8.30266]
[1729329400475,2.37757673,2649.0,2648.6,4.52718]
[1729329400669,2.37757673,2649.0,2648.6,8.30269]
[1729329401118,2.37757673,2649.0,2648.7,3.77542]
[1729329401821,7.04522036,2649.0,2648.5,3.77568]
[1729329402119,6.15260673,2649.0,2648.5,3.77563]
[1729329402309,2.37757673,2648.9,2648.5,3.77563]
[1729329402621,6.15260673,2649.0,2648.5,3.77563]
[1729329402929,6.15260673,2649.0,2648.5,7.55127]
[1729329403217,2.37757673,2649.0,2648.5,7.55126]
[1729329403419,2.37757673,2649.0,2648.5,3.77563]
[1729329403626,2.37757673,2649.0,2648.5,7.55126]
[1729329403927,2.37757673,2649.0,2648.5,3.77563]
[1729329404283,2.37757673,2649.0,2648.5,7.55128]
[1729329404489,2.37757673,2649.0,2648.5,3.77563]
[1729329404909,2.3775468,2649.0,2648.5,7.55127]
[1729329405226,2.3775468,2649.0,2648.6,3.77557]
[1729329406288,2.3775468,2649.0,2648.7,3.77543]
[1729329406487,2.3775468,2649.0,2648.6,4.228597]
[1729329406708,2.3775468,2649.0,2648.6,8.004107]
[1729329406893,2.3775468,2649.0,2648.6,8.004027]
[1729329407094,2.3775468,2649.0,2648.6,4.228517]
[1729329407306,2.3775468,2649.0,2648.7,3.77538]
[1729329407824,2.3775468,2649.0,2648.6,3.77549]
[1729329409638,2.3775468,2649.0,2648.6,7.55099]
[1729329409797,2.37754253,2649.0,2648.6,7.55099]
[1729329410838,6.15256253,2649.0,2648.5,4.53034]
[1729329411037,6.15256253,2649.0,2648.5,8.30597]
[1729329411038,7.42267275,2649.0,2648.5,8.30597]
[1729329411502,6.15256253,2649.0,2648.5,8.30597]
[1729329411705,2.37754253,2649.0,2648.5,4.53033]
[1729329411932,2.37754253,2649.0,2648.6,3.77557]
[1729329412291,2.37754253,2649.0,2648.7,3.77543]
[1729329414611,2.37753927,2649.0,2648.7,3.77543]
[1729329422864,2.37769842,2649.0,2648.7,3.77543]
[1729329427877,2.37781381,2649.0,2648.7,3.77543]
[1729329428346,2.37781381,2649.0,2648.7,7.55079]
[1729329430870,2.37781381,2649.0,2648.7,3.77536]
[1729329431278,2.37781381,2649.0,2648.7,7.55071]
[1729329432541,2.37781381,2649.0,2648.7,3.77535]
[1729329432745,2.37781381,2649.0,2648.7,7.55072]
[1729329433186,2.37781381,2649.0,2648.7,3.77535]
[1729329433760,2.37781381,2649.0,2648.8,3.77527]
[1729329434950,2.37781381,2649.0,2648.7,3.77535]
[1729329435372,2.37781381,2649.0,2648.7,7.55072]
[1729329435579,2.37781381,2649.0,2648.7,3.77535]
[1729329435974,2.37781381,2649.0,2648.7,7.5507]
[1729329436694,2.37781381,2649.0,2648.7,3.77535]
[1729329437554,2.37791083,2649.0,2648.7,7.5507]
[1729329439179,2.37791083,2649.0,2648.7,3.77535]
[1729329440185,2.37791083,2649.0,2648.7,7.55071]
[1729329441896,2.37791083,2649.0,2648.7,3.77535]
[1729329442093,2.37791083,2649.0,2648.8,3.77525]
[1729329442249,2.37791083,2649.0,2648.8,4.53435]
[1729329442456,2.37782675,2649.0,2648.8,4.53435]
[1729329444558,2.37782675,2649.0,2648.9,3.77515]
[1729329444774,2.37782675,2649.1,2648.9,3.77515]
[1729329444971,3.36490229,2649.3,2648.9,3.77515]
[1729329444972,2.37782675,2649.0,2648.9,3.77515]
[1729329445205,2.37782675,2649.1,2648.9,3.77515]
[1729329445373,2.37782675,2649.1,2648.9,7.5502]
[1729329445904,2.37782675,2649.1,2648.9,3.77505]
[1729329447284,2.37758408,2649.1,2648.9,3.77505]
[1729329452180,2.37753591,2649.1,2648.9,3.77505]
[1729329457092,2.37754521,2649.1,2648.9,3.77505]
[1729329458009,2.37754521,2649.1,2648.8,4.53438]
[1729329459041,2.37754521,2649.1,2648.8,0.7591]
[1729329459247,2.37754521,2649.1,2648.9,3.77513]
[1729329461334,2.37754521,2649.1,2648.8,0.7591]
[1729329461549,2.37754521,2649.1,2648.8,4.53433]
[1729329463147,2.37754521,2649.0,2648.1,0.8142]
[1729329463352,0.5742119,2649.1,2648.1,4.59037]
[1729329463353,6.15304521,2648.7,2648.1,4.59037]
[1729329463522,2.37754521,2648.6,2648.1,4.59037]
[1729329463728,2.37754521,2648.6,2648.2,3.77603]
[1729329464046,1.98152571,2648.4,2648.3,3.776]
[1729329464815,1.98152571,2648.4,2648.2,3.77613]
[1729329465732,1.98152571,2648.5,2648.2,3.77613]
[1729329466666,1.97985873,2648.5,2648.2,3.77613]
[1729329467655,1.97985873,2648.5,2648.2,3.77614]
[1729329469771,1.97985873,2648.5,2648.3,3.77596]
[1729329470183,1.97985873,2648.6,2648.3,3.77596]
[1729329470990,1.97985873,2648.5,2648.2,3.77614]
[1729329471345,1.97985873,2648.5,2648.2,3.77606]
[1729329471682,1.97985873,2648.6,2648.2,3.77606]
[1729329471847,1.97985873,2648.6,2648.2,7.55212]
[1729329472185,1.97985873,2648.6,2648.2,3.77606]
[1729329472567,1.97985873,2648.6,2648.2,3.77605]
[1729329472768,1.97985873,2648.6,2648.2,7.5521]
[1729329473178,1.97985873,2648.6,2648.2,3.77605]
[1729329473705,1.97985873,2648.6,2648.2,7.55213]
[1729329474970,1.97985873,2648.6,2648.2,3.77605]
[1729329475756,1.97985873,2648.6,2648.2,7.55211]
[1729329476002,1.97985873,2648.6,2648.2,3.77605]
[1729329476218,1.97797022,2648.6,2648.2,3.77605]
[1729329476506,1.97797022,2648.6,2648.2,7.55212]
[1729329477895,1.97797022,2648.6,2648.2,3.77605]
[1729329478994,5.75357022,2648.6,2648.1,3.77625]
[1729329479196,2.17576724,2648.5,2647.9,0.8142]
[1729329479402,5.75383022,2648.4,2647.9,3.77657]
[1729329479700,6.34899294,2648.4,2647.8,0.8136]
[1729329479901,1.97797022,2648.1,2647.6,2.61629603]
[1729329480101,1.97797022,2648.1,2647.7,3.77684]
[1729329480476,1.97797022,2648.1,2647.7,7.55361]
[1729329480673,1.97797022,2648.3,2648.0,4.59003]
[1729329481065,1.97797022,2648.4,2648.0,4.59003]
[1729329481569,1.97797022,2648.4,2648.1,3.77629]
[1729329483403,1.97797022,2648.5,2648.1,3.77629]
[1729329483601,1.97797022,2648.5,2648.0,4.59002]
[1729329483801,1.97797022,2648.4,2648.0,4.59002]
[1729329484317,1.97701626,2648.4,2648.0,4.59002]
[1729329484465,5.75273626,2648.5,2648.0,4.59002]
[1729329484869,1.97701626,2648.4,2648.0,4.59002]
[1729329485287,5.75273626,2648.5,2648.0,4.59002]
[1729329486804,5.75273626,2648.5,2648.0,0.8136]
[1729329488611,6.34365164,2648.5,2648.0,0.8136]
[1729329491570,2.56793164,2648.5,2648.0,0.8136]
[1729329493905,2.56720338,2648.5,2648.0,0.8136]
[1729329494084,6.34293338,2648.5,2648.0,0.8136]
[1729329495304,2.56720338,2648.5,2648.0,4.59001]
[1729329497519,1.976288,2648.4,2648.0,0.8136]
[1729329497890,6.34294338,2648.5,2648.0,0.8136]
[1729329498472,2.56720338,2648.5,2648.0,4.59001]
[1729329498858,2.56766319,2648.5,2648.1,0.459001]
[1729329499201,1.97674781,2648.4,2648.1,0.459001]
[1729329499402,2.56766319,2648.5,2648.1,0.459001]
[1729329499625,2.56766319,2648.5,2648.0,4.59001]
[1729329500307,1.97674781,2648.4,2648.0,4.59001]
[1729329500501,1.97674781,2648.4,2648.0,0.8136]
[1729329502404,3.77607,2648.3,2647.8,1.8190906]
[1729329502604,5.75281781,2648.3,2647.8,0.8021]
[1729329503406,5.75394389,2648.3,2647.8,0.8021]
[1729329504240,9.53002389,2648.3,2647.8,0.8021]
[1729329504539,5.75394389,2648.3,2647.8,0.8021]
[1729329504966,1.97787389,2648.2,2647.8,0.8021]
[1729329505422,1.97787389,2648.1,2647.8,0.8021]
[1729329505808,5.75418389,2648.1,2647.5,5.61498608]
[1729329506016,3.77643,2648.0,2647.6,0.8021]
[1729329506320,5.75430389,2648.0,2647.6,0.8021]
[1729329508252,1.97895187,2647.9,2647.6,0.8021]
[1729329508551,3.77643,2648.0,2647.6,0.8021]
[1729329508552,5.75538187,2648.0,2647.6,0.8021]
[1729329509724,1.97895187,2647.9,2647.6,0.8021]
[1729329510455,5.75538187,2648.0,2647.6,0.8021]
[1729329511453,6.67444129,2648.0,2647.6,0.8021]
[1729329512010,1.97895187,2647.9,2647.6,0.8021]
[1729329512948,1.97881553,2647.9,2647.6,0.8021]
[1729329514550,6.67430495,2648.0,2647.6,0.8021]
[1729329515462,1.97881553,2647.9,2647.6,0.8021]
[1729329516551,5.75499643,2647.9,2647.6,0.8021]
[1729329517732,5.75493072,2647.9,2647.6,0.8021]
[1729329518134,5.75477072,2648.0,2647.6,0.8021]
[1729329518523,6.94527168,2648.0,2647.6,0.8021]
[1729329519569,3.7766,2647.9,2647.6,0.8021]
[1729329523261,5.75504414,2647.9,2647.6,0.8021]
[1729329524046,2.37413297,2648.2,2647.3,3.77729]
[1729329524047,1.97844414,2647.7,2647.3,0.8292]
[1729329524267,3.95356733,2647.6,2647.3,0.8292]
[1729329524467,1.97844414,2647.6,2647.1,1.81275303]
[1729329524652,3.77736,2647.4,2647.0,0.8292]
[1729329527664,3.7771,2647.6,2647.0,4.60704]
[1729329527840,7.5542,2647.6,2647.0,4.60704]
[1729329528547,3.77714,2647.5,2647.0,4.60704]
[1729329529655,3.77714,2647.5,2647.1,0.57267495]
[1729329530839,3.77714,2647.5,2647.0,4.60704]
[1729329532169,3.77714,2647.5,2647.0,0.8292]
[1729329533471,3.77728,2647.5,2647.0,0.8292]
[1729329534666,3.77728,2647.5,2647.0,4.60705]
[1729329534870,3.77714,2647.5,2647.0,0.8292]
[1729329537473,3.77714,2647.5,2647.1,0.756]
[1729329537873,3.77729,2647.4,2647.1,0.756]